[Event "Kvika Banki League Iceland 2022-23"]
[Site "Reykjavik"]
[Date "2022.10.14"]
[Round "2.15"]
[White "Kjartansson, David"]
[Black "Birkisson, Bardur Orn"]
[Result "0-1"]
[ECO "D14"]
[WhiteElo "2316"]
[BlackElo "2145"]
[Annotator "TA"]
[PlyCount "87"]
[EventDate "2022.10.13"]
[EventType "team-tourn"]
[EventCountry "ISL"]
[SourceTitle "playchess.com"]
[Source "ChessBase"]
[SourceQuality "1"]
[TimeControl "5400+30"]

{[%evp 14,87,10,4,17,0,0,-2,0,0,-7,-6,0,-14,0,0,9,0,0,0,0,0,-15,-28,-25,-56,-75,-65,-62,-201,-191,-179,8,-120,-119,-284,-168,-332,-329,-673,-345,-345,-345,-345,-345,-352,-352,-415,-415,-415,-414,-352,-352,-702,-239,-183,-183,-480,-407,-468,-422,-468,-450,-674,-674,-666,-666,-666,-631,-29988,-29989,-29989,-645,-29992,-606,-658]} 1. d4 {[%emt 0:00:04]} d5 {[%emt 0:00:13]} 2. c4 {[%emt 0:00:09]} c6 {[%emt 0:00:50]} 3. cxd5 {[%emt 0:00:08]} cxd5 {[%emt 0:00:11]} 4. Nc3 {[%emt 0:00:06]} Nf6 {[%emt 0:00:16]} 5. Bf4 {[%emt 0:00:08]} Nc6 {[%emt 0:00:19]} 6. e3 {[%emt 0:00:34]} Bf5 {[%emt 0:00:22]} 7. Nf3 {[%emt 0:00:40]} e6 {[%emt 0:07:26]} 8. Rc1 {[%emt 0:10:48]} Bd6 {[%emt 0:17:02] D14: Slav Defence: Exchange variation with ...Bf5.} 9. Bg3 {[%emt 0:09:26]} O-O {[%emt 0:03:22]} 10. Be2 {[%emt 0:02:58]} h6 {[%emt 0:03:14] The position is equal.} 11. O-O {[%emt 0:00:36]} Bxg3 {[%emt 0:01:21]} 12. hxg3 {[%emt 0:00:09] [#]} Rc8 $146 {[%emt 0:06:24]} ({Predecessor:} 12... Qa5 13. Qa4 Rfc8 14. Qxa5 Nxa5 15. Ne5 Nc6 16. Nb5 Ne8 17. Nxc6 bxc6 18. Nc3 c5 19. dxc5 Rxc5 20. Na4 Rc2 21. Rxc2 Bxc2 22. b3 Rc8 23. Rc1 Rc7 24. Kf1 {½-½ (24) Smith,R (2214)-Hague,B (2314) Auckland 2012}) 13. a3 {[%emt 0:00:38]} a6 {[%emt 0:09:34]} 14. Na4 {[%emt 0:01:37]} Ne4 {[%emt 0:03:38]} 15. Nd2 {[%emt 0:01:33]} Nd6 {[%emt 0:11:09]} 16. Nc5 {[%emt 0:02:49]} Qe7 {[%emt 0:02:27]} 17. b4 {[%emt 0:01:15]} Rc7 {[%emt 0:06:00]} 18. Qb3 {[%emt 0:02:25]} Rfc8 {[%emt 0:00:55]} 19. Rc3 {[%emt 0:02:59]} b6 {[%emt 0:08:34]} 20. Bxa6 {[%emt 0:06:13]} Ra8 {[%emt 0:04:28]} 21. b5 {[%emt 0:12:25]} (21. Rfc1 $15) 21... bxc5 $19 {[%emt 0:04:58]} 22. dxc5 {[%emt 0:00:40]} Na5 $2 {[%emt 0:03:04]} (22... Ne4 $19 23. Nxe4 Bxe4) 23. Qb4 {[%emt 0:02:52]} (23. cxd6 $11 Nxb3 24. dxc7) 23... Ndc4 $1 $17 {[%emt 0:00:36] Black keeps a firm grip on the game.} 24. b6 $2 {[%emt 0:09:29]} (24. Nxc4 $17 Nxc4 25. c6) 24... Rxc5 {[%emt 0:05:03]} ({Worse is} 24... Nxd2 25. Qxa5 Rc6 26. Qb5 $11) (24... Rxa6 $142 25. Nxc4 dxc4 26. bxc7 Qxc7) 25. b7 $2 {[%emt 0:07:10]} (25. Bb5 {was called for.}) 25... Rb8 $19 {[%emt 0:00:06] [#] Hoping for ...Nc6.} 26. e4 $2 {[%emt 0:01:27]} (26. Rfc1 Qc7 27. e4) 26... Bg6 {[%emt 0:00:20] Threatens to win with ...Nc6.} 27. exd5 {[%emt 0:02:24]} exd5 {[%emt 0:00:08] White must now prevent ...Nc6.} ({Resist} 27... Nxd2 28. Rxc5 Kh7 29. Qxa5 $18) 28. Nxc4 {[%emt 0:07:05]} Nxc4 {[%emt 0:00:20]} ({Not} 28... dxc4 $2 29. Bxc4 Nxb7 30. Ba6 $19) 29. Rd1 {[%emt 0:12:10]} Qc7 {[%emt 0:00:23]} 30. Rxd5 {[%emt 0:01:06]} Rxd5 {[%emt 0:00:07][%cal Bc5d5,Bd5d1,Bd1d8][%mdl 32]} 31. Rxc4 {[%emt 0:00:39]} Rd1+ {[%emt 0:00:17]} 32. Kh2 {[%emt 0:00:04]} Qe5 {[%emt 0:00:10]} 33. Rc5 $2 {[%emt 0:00:19]} (33. Rc8+ Kh7 34. Qf4) 33... Qe8 $2 {[%emt 0:01:47]} (33... Qa1 {[%csl Ga1][%cal Rd1h1]} 34. g4 Kh7) 34. Rc8 {[%emt 0:02:08]} Rd8 {[%emt 0:00:11] Strongly threatening ...Bf5.} 35. Rc7 $2 {[%emt 0:00:58]} (35. Qc5 Be4 36. Qc7 Bxb7 37. Rxb8 Rxb8 38. Bxb7) 35... Qe5 {[%emt 0:01:34]} 36. Rc5 {[%emt 0:00:12]} Qe7 {[%emt 0:00:28]} 37. f3 {[%emt 0:01:45]} Qd6 {[%emt 0:01:02]} 38. Qa5 {[%emt 0:00:49]} (38. Rc8 $142 Qxa6 39. Rxd8+ Rxd8 40. b8=Q Rxb8 41. Qxb8+ Kh7 42. Qb3) 38... Bd3 {[%emt 0:00:28]} 39. Bxd3 {[%emt 0:00:28]} Qxd3 {[%emt 0:00:06]} 40. Rc7 {[%emt 0:00:08]} Qd5 {[%emt 0:00:33] Prevents Qe5.} 41. Qb6 {[%emt 0:00:15]} Qh5+ {[%emt 0:00:44]} 42. Kg1 {[%emt 0:00:02]} Qg6 {[%emt 0:00:27]} (42... Rd1+ $142 43. Kf2 Qh1 44. Rc8+ Kh7 45. Qb4 Qg1+ 46. Ke2 {[#]} Rxb7 $3 {[%mdl 512]} 47. Rd8 Re7+ 48. Qe4+ Rxe4+ 49. fxe4 Rxd8 50. a4 Qxg2+ 51. Ke3 Qf1 52. e5 Rd3+ 53. Ke4 Qf3#) 43. Qe6 {[%emt 0:01:26]} Qf6 (43... fxe6 $142 44. g4 Qg5 45. Kf2 Qd2+ 46. Kf1 Qe3 47. Rc8 Rdxc8 48. bxc8=Q+ Rxc8 49. g3 Rc2 50. f4 Qf2#) 44. Qxf6 {[%emt 0:00:30] Weighted Error Value: White=1.05/Black=0.40} 0-1

[Event "Kvika Banki League Iceland 2022-23"]
[Site "Reykjavik"]
[Date "2022.10.14"]
[Round "2.16"]
[White "Bewersdorff, Oliver"]
[Black "Eggleston, David J"]
[Result "1/2-1/2"]
[ECO "A29"]
[WhiteElo "2231"]
[BlackElo "2354"]
[Annotator "TA"]
[PlyCount "66"]
[EventDate "2022.10.13"]
[EventType "team-tourn"]
[EventCountry "ISL"]
[SourceTitle "playchess.com"]
[Source "ChessBase"]
[SourceQuality "1"]
[TimeControl "5400+30"]

{[%evp 21,66,-7,2,0,3,-28,-37,-27,-24,-61,-52,-58,-27,-70,-17,-2,0,-11,0,0,0,0,0,0,7,7,2,0,24,0,0,0,0,0,0,0,0,0,0,0,0,0,0,0,0,0,0]} 1. c4 {[%emt 0:00:06]} e5 {[%emt 0:00:09]} 2. g3 {[%emt 0:00:08]} Nc6 {[%emt 0:00:15]} 3. Nc3 {[%emt 0:00:07]} Nf6 {[%emt 0:01:11]} 4. Bg2 {[%emt 0:00:33]} Bb4 {[%emt 0:00:24]} 5. Nf3 {[%emt 0:00:33]} O-O {[%emt 0:07:44]} 6. Nd5 {[%emt 0:02:02]} Bc5 {[%emt 0:01:01]} 7. O-O {[%emt 0:02:55]} d6 {[%emt 0:00:12]} 8. d3 {[%emt 0:02:39]} h6 {[%emt 0:00:08]} 9. a3 {[%emt 0:01:16]} a6 {[%emt 0:02:16]} 10. b4 {[%emt 0:03:45]} Ba7 {[%emt 0:00:17]} 11. e3 {[%emt 0:00:22]} Nxd5 {[%emt 0:06:40]} 12. cxd5 {[%emt 0:00:26] A29: English Opening: Four Knights Variation with 4 g3.} Ne7 {[%emt 0:00:07]} 13. e4 {[%emt 0:05:44] [#]} c6 $146 {[%emt 0:02:32]} ({Predecessor:} 13... f5 14. exf5 Bxf5 15. Nh4 Bd7 16. Be4 Bh3 17. Ng2 Qe8 18. Bb2 c6 19. dxc6 bxc6 20. d4 d5 {0-1 (61) Maehrlein,C (2053)-Barzen,P (2312) Heusenstamm 2019}) 14. dxc6 {[%emt 0:05:42] Black is slightly better.} Nxc6 {[%emt 0:00:06]} 15. Be3 {[%emt 0:02:06]} Bxe3 {[%emt 0:08:31]} 16. fxe3 {[%emt 0:00:13]} Be6 {[%emt 0:04:34]} (16... Qb6 $5 {[%cal Rb6e3]} 17. Qe2 a5 $15) 17. Rc1 {[%emt 0:17:34][%cal Ba1c1,Bc1c5,Bc5d5,Bd5d7,Bd7b7,Bb7e7,Be7a7][%mdl 32]} d5 {[%emt 0:01:26]} (17... Qb6 $1 $15 18. Qd2 a5) 18. exd5 $11 {[%emt 0:02:10]} Bxd5 {[%emt 0:00:38]} 19. Rc5 {[%emt 0:00:17][%cal Of3e5]} Qd6 {[%emt 0:09:30]} 20. Nxe5 {[%emt 0:12:14]} Qxe5 {[%emt 0:00:57]} (20... Bxg2 21. Nc4 Qe6 22. Kxg2 $14) 21. Rxd5 {[%emt 0:02:11]} Qxe3+ {[%emt 0:00:28]} 22. Kh1 {[%emt 0:00:08]} Rae8 {[%emt 0:08:48]} 23. Rd7 {[%emt 0:03:10]} Ne5 {[%emt 0:03:45]} 24. Rxb7 {[%emt 0:00:48]} Rd8 {[%emt 0:09:16]} 25. Re7 {[%emt 0:04:53]} Qg5 {[%emt 0:03:40] The position is equal.} 26. Ra7 {[%emt 0:00:48]} Rxd3 {[%emt 0:01:57]} 27. Qe2 {[%emt 0:03:17]} Rd2 {[%emt 0:06:45]} 28. Qxa6 {[%emt 0:02:07]} Rxg2 {[%emt 0:14:14]} 29. Kxg2 {[%emt 0:00:28] [#] Hoping for Qe2.} Qd2+ {[%emt 0:02:07]} 30. Rf2 {[%emt 0:01:02]} Qd5+ {[%emt 0:00:04]} 31. Kg1 {[%emt 0:04:56] Threatens to win with Qe2.} Nf3+ {[%emt 0:02:55]} 32. Rxf3 $1 {[%emt 0:00:37]} Qxf3 {[%emt 0:00:03]} 33. Qb7 {[%emt 0:00:08] Active counter play!} Qe3+ {[%emt 0:02:16] Weighted Error Value: White=0.06 (flawless) /Black=0.07 (flawless)} 1/2-1/2

[Event "Kvika Banki League Iceland 2022-23"]
[Site "Reykjavik"]
[Date "2022.10.14"]
[Round "2.17"]
[White "Cheparinov, Ivan"]
[Black "Steingrimsson, Hedinn"]
[Result "1/2-1/2"]
[ECO "B12"]
[WhiteElo "2689"]
[BlackElo "2512"]
[Annotator "TA"]
[PlyCount "71"]
[EventDate "2022.10.13"]
[EventType "team-tourn"]
[EventCountry "ISL"]
[SourceTitle "playchess.com"]
[Source "ChessBase"]
[SourceQuality "1"]
[TimeControl "5400+30"]

{[%evp 13,71,20,25,11,52,47,50,37,54,44,41,47,49,39,56,66,68,47,77,65,123,92,141,15,7,24,14,30,15,21,21,24,16,19,16,12,14,35,17,-16,-20,-17,-20,-14,-14,-14,-20,-30,-2,-73,-68,-76,-81,-76,-60,-71,0,0,0,0]} 1. e4 {[%emt 0:00:04]} c6 {[%emt 0:00:02]} 2. d4 {[%emt 0:00:13]} d5 {[%emt 0:00:03]} 3. e5 {[%emt 0:00:05]} Bf5 {[%emt 0:00:05]} 4. Nf3 {[%emt 0:00:05]} e6 {[%emt 0:00:06]} 5. Be2 {[%emt 0:00:04]} Nd7 {[%emt 0:10:58]} 6. O-O {[%emt 0:00:30]} Ne7 {[%emt 0:00:06]} 7. c3 {[%emt 0:00:41]} h6 {[%emt 0:00:30]} 8. a4 {[%emt 0:00:08][%cal Ba2a4,Ba4a5][%mdl 32] B12: Caro-Kann: Advance Variation.} c5 {[%emt 0:06:30] 8...Qc7 is a critical line.} 9. dxc5 $1 {[%emt 0:06:21]} Nxc5 {[%emt 0:10:09]} 10. Nd4 {[%emt 0:00:36] White is slightly better.} Bh7 {[%emt 0:07:49]} 11. a5 {[%emt 0:00:20]} a6 {[%emt 0:05:28]} 12. b4 {[%emt 0:01:38]} Nd7 {[%emt 0:02:26] [#]} 13. f4 $146 {[%emt 0:00:05]} ({Predecessor:} 13. Qa4 Nf5 14. Ba3 Be7 15. b5 O-O 16. bxa6 Bxa3 17. Qxa3 bxa6 18. Nxf5 Bxf5 19. Qd6 {1-0 (65) Yankelevich,L (2484)-Laurusas,T (2565) Bratislava 2022}) 13... Nf5 {[%emt 0:02:09][%cal Be7f5,Bf5d4,Bd4c6][%mdl 32]} 14. Bd3 {[%emt 0:06:47]} Nxd4 {[%emt 0:06:24]} 15. Bxh7 {[%emt 0:00:08]} Nc6 {[%emt 0:00:14]} 16. Bc2 {[%emt 0:04:49]} d4 {[%emt 0:00:59]} ({Black should play} 16... Be7 $14) 17. f5 $16 {[%emt 0:08:19]} (17. cxd4 Bxb4 18. Be3 g6 $14) 17... exf5 {[%emt 0:04:38]} 18. e6 {[%emt 0:02:24]} (18. Rxf5 g6 19. Rf4 d3 20. Qxd3 (20. e6 dxc2 21. exd7+ Qxd7 $11) 20... Ndxe5 $14) (18. cxd4 $16 g6 19. Bb2) 18... fxe6 $11 {[%emt 0:00:56]} 19. Qh5+ {[%emt 0:01:38]} Ke7 $1 {[%emt 0:02:58]} 20. Ba3 $1 {[%emt 0:00:02]} (20. Re1 Nde5 21. Bf4 dxc3 22. Bxf5 (22. Bxe5 Nxe5 23. Bxf5 Qd4+ 24. Kh1 g5 $17) 22... g5 23. Bxe5 Nxe5 $17) 20... d3 $1 {[%emt 0:11:55]} 21. Bxd3 {[%emt 0:18:34] Hoping for b5+.} ({Much weaker is} 21. b5+ Kf6 22. Bxd3 (22. bxc6 dxc2 23. cxd7 cxb1=R $17) 22... g6 23. Qh4+ Kg7 24. Qxd8 Nxd8 25. bxa6 bxa6 $17) 21... g6 {[%emt 0:00:19]} 22. Qxg6 {[%emt 0:00:53]} Nce5 $1 {[%emt 0:00:10][%csl LRd3,LRg6]} 23. Qg3 {[%emt 0:06:15]} Nxd3 {[%emt 0:06:05]} 24. Qxd3 {[%emt 0:00:03] Threatens to win with Qe2.} Ne5 {[%emt 0:00:11]} 25. Qg3 {[%emt 0:05:51]} Kf6 {[%emt 0:04:13]} 26. Bb2 {[%emt 0:02:10] [#]} Rg8 $1 $36 {[%emt 0:01:53][%mdl 2048] White is under pressure.} 27. Qxg8 {[%emt 0:05:05] [#]} ({Not} 27. Rxf5+ $2 exf5 28. Qh4+ Rg5 $19) 27... Bc5+ $1 {[%emt 0:00:06]} 28. bxc5 {[%emt 0:00:02]} Qxg8 {[%emt 0:00:07]} 29. c4 $1 {[%emt 0:00:01] And now Nd2 would win.} Qf8 {[%emt 0:07:09]} 30. Re1 $1 {[%emt 0:00:19]} Qxc5+ {[%emt 0:00:03]} 31. Kh1 {[%emt 0:00:05] [#]} (31. Kf1 $1 $11 {remains equal.}) 31... Rd8 $1 $17 {[%emt 0:00:34][%cal Of6f7] Strongly threatening ...Kf7!} 32. Rxe5 {[%emt 0:20:05] [#]} Kf7 $1 {[%emt 0:00:33] ( -> ...Rd1+)} 33. Re1 {[%emt 0:03:04] Against Rd1} (33. Rxc5 $2 Rd1#) 33... Qf2 {[%emt 0:01:22][%cal Rf2e1]} 34. Bc3 {[%emt 0:00:04]} Rg8 {[%emt 0:01:16]} (34... Rd3 $17) 35. Rg1 $11 {[%emt 0:00:13] aiming for Nd2.} Rxg2 {[%emt 0:02:52]} 36. Rxg2 {[%emt 0:00:02] Weighted Error Value: White=0.10 (very precise) /Black=0.10 (very precise)} 1/2-1/2

[Event "Kvika Banki League Iceland 2022-23"]
[Site "Reykjavik"]
[Date "2022.10.14"]
[Round "2.18"]
[White "Kazakouski, Valery"]
[Black "Jones, Gawain C B"]
[Result "1/2-1/2"]
[ECO "E71"]
[WhiteElo "2538"]
[BlackElo "2626"]
[Annotator "TA"]
[PlyCount "118"]
[EventDate "2022.10.13"]
[EventType "team-tourn"]
[EventCountry "ISL"]
[SourceTitle "playchess.com"]
[Source "ChessBase"]
[SourceQuality "1"]
[TimeControl "5400+30"]

{[%evp 10,118,41,29,52,20,41,47,42,46,53,27,32,0,0,0,0,-1,39,-14,0,-23,-18,-20,-18,-18,-16,-19,81,-103,-108,-104,-106,-121,-105,-102,-112,-158,-84,-91,-41,-105,-95,-80,-49,-50,-47,-52,-34,-74,-72,-73,-71,-86,-86,-86,-86,-86,-78,-86,-87,-87,-87,-87,-37,-87,0,0,0,-81,-10,-104,-104,-104,-104,-146,-101,-103,0,0,0,0,0,0,0,0,0,0,0,-133,-133,-133,-81,-81,-81,-81,-80,-80,-80,-80,0,0,0,0,0,0,0,0,0,0,0]} 1. d4 {[%emt 0:00:04]} Nf6 {[%emt 0:00:14]} 2. c4 {[%emt 0:00:09]} g6 {[%emt 0:00:05]} 3. Nc3 {[%emt 0:00:07]} Bg7 {[%emt 0:00:04]} 4. e4 {[%emt 0:00:10]} d6 {[%emt 0:00:05]} 5. h3 {[%emt 0:00:19]} O-O {[%emt 0:00:08]} 6. Be3 {[%emt 0:00:07]} Nc6 {[%emt 0:00:34] E71: King's Indian: 4 e4 d6 5 h3.} 7. d5 {[%emt 0:00:58]} Ne5 {[%emt 0:00:15][%cal Bc6e5,Be5d7,Bd7c5][%mdl 32]} 8. g4 {[%emt 0:04:29]} c6 {[%emt 0:02:43][%cal Ob7b5] White is slightly better.} 9. f4 {[%emt 0:02:14]} Ned7 {[%emt 0:00:03]} 10. Nge2 {[%emt 0:01:48]} Qa5 {[%emt 0:02:03] [#]} 11. Ng3 $146 {[%emt 0:10:23]} ({Predecessor:} 11. Qc2 cxd5 12. cxd5 Nc5 13. Bg2 Bd7 14. O-O Rac8 15. Qd2 b5 16. Ng3 b4 17. Nce2 {0-1 (60) Noe,C (2505)-Donchenko,A (2640) Pardubice 2022}) 11... Nc5 {[%emt 0:10:03] White must now prevent ...Ncxe4.} 12. Kf2 {[%emt 0:16:42]} cxd5 {[%emt 0:05:53]} 13. cxd5 {[%emt 0:07:13]} Bd7 {[%emt 0:06:07]} 14. Bg2 {[%emt 0:11:19]} (14. Rb1 $14) 14... Rac8 $11 {[%emt 0:01:29]} 15. Rb1 {[%emt 0:09:03]} Na4 $1 {[%emt 0:02:50]} 16. Nxa4 {[%emt 0:01:13]} Bxa4 {[%emt 0:00:09]} 17. b3 {[%emt 0:00:51]} Bd7 {[%emt 0:00:56]} 18. a4 {[%emt 0:04:34]} Rc3 {[%emt 0:01:18]} (18... b5 $11) 19. g5 $2 {[%emt 0:03:38] [#]} (19. Qd2 $1 $16 {keeps the pressure on. Threatens to win with Ne2.} Qa6 20. Bf1) 19... Nh5 $1 $17 {[%emt 0:05:40]} 20. Nxh5 {[%emt 0:01:27]} gxh5 {[%emt 0:00:03]} 21. b4 {[%emt 0:01:49]} Qxa4 {[%emt 0:05:44]} 22. Qxa4 {[%emt 0:00:12]} Bxa4 {[%emt 0:00:04]} 23. Bxa7 {[%emt 0:05:07]} (23. Rhc1 $142) 23... Rfc8 {[%emt 0:21:20]} (23... Ra8 $142 24. Be3 Bb5) 24. Rhe1 {[%emt 0:05:04]} Ra3 {[%emt 0:05:51]} (24... Rc2+ $17 25. Re2 Rxe2+ 26. Kxe2 Bc2) 25. Rbc1 {[%emt 0:02:21]} (25. e5 $1 $15) 25... Ra2+ {[%emt 0:11:06]} 26. Kg1 {[%emt 0:00:40]} Bc2 {[%emt 0:06:01]} 27. Re2 {[%emt 0:02:18][%cal Oe4e5]} Rxa7 {[%emt 0:00:12]} 28. Rexc2 {[%emt 0:00:21]} Bd4+ {[%emt 0:00:10]} 29. Kh2 {[%emt 0:02:08]} Rxc2 {[%emt 0:00:15]} 30. Rxc2 {[%emt 0:00:06][%mdl 4096] Endgame KRB-KRB} h4 {[%emt 0:00:32]} 31. e5 {[%emt 0:02:53]} Be3 {[%emt 0:04:24]} 32. Rc4 {[%emt 0:00:48]} Ra1 {[%emt 0:00:30] Strongly threatening ...b5.} 33. Bf3 {[%emt 0:02:17]} Rf1 {[%emt 0:00:44]} 34. exd6 {[%emt 0:01:07]} exd6 {[%emt 0:00:07]} 35. Bh5 {[%emt 0:00:50]} Rf2+ {[%emt 0:01:24]} (35... Bxf4+ $2 36. Kg2 Re1 37. Rxf4 $18) 36. Kh1 {[%emt 0:00:02]} b5 {[%emt 0:00:52]} (36... Rxf4 $17 37. Rxf4 Bxf4) 37. Rc3 {[%emt 0:00:52]} (37. Re4 $15 Bxf4 38. Kg1) 37... Rf1+ {[%emt 0:01:05]} 38. Kg2 {[%emt 0:00:07]} Rf2+ {[%emt 0:00:43]} 39. Kh1 $1 {[%emt 0:00:02]} ({Don't play} 39. Kg1 Bd4 40. Rc8+ Kg7 $17) 39... Bd4 {[%emt 0:02:42]} (39... Bxf4 $17 40. Rf3 Rxf3 41. Bxf3 Bxg5) 40. Rf3 {[%emt 0:00:26]} (40. Rc6 $11 {keeps the balance.}) 40... Rb2 {[%emt 0:00:17]} 41. Ra3 {[%emt 0:01:12]} Rxb4 {[%emt 0:01:04]} 42. Ra8+ {[%emt 0:01:05]} Kg7 {[%emt 0:00:01]} 43. Re8 {[%emt 0:02:08]} Rb3 {[%emt 0:03:01]} (43... h6 $17 {...Rb3 is the strong threat.} 44. Re7 hxg5 45. fxg5 Rb1+ 46. Kg2 Rg1+ 47. Kf3 Rxg5 48. Rxf7+ Kh6) 44. Re7 $1 $11 {[%emt 0:01:07]} Rxh3+ {[%emt 0:00:06]} 45. Kg2 {[%emt 0:00:03]} Rg3+ {[%emt 0:00:04]} 46. Kh2 $1 {[%emt 0:00:20]} b4 {[%emt 0:01:21]} 47. Rxf7+ {[%emt 0:00:05]} Kg8 {[%emt 0:00:03]} 48. Re7 {[%emt 0:01:13]} Re3 {[%emt 0:01:19]} 49. Rxe3 {[%emt 0:00:49]} (49. Rd7 $11) 49... Bxe3 {[%emt 0:00:02] KB-KB} 50. Kh3 {[%emt 0:00:07]} b3 {[%emt 0:03:02]} (50... Kg7 $142 51. Bd1 Bxf4 52. Kxh4 h6) 51. Bd1 $17 {[%emt 0:00:05]} b2 {[%emt 0:00:05]} 52. Bc2 {[%emt 0:00:03]} Bf2 {[%emt 0:00:37]} 53. Kg4 {[%emt 0:00:32] [#]} Kg7 $1 {[%emt 0:00:39]} 54. f5 {[%emt 0:00:29]} h6 {[%emt 0:00:12]} (54... Be3 $17 {[%cal Oe3g5] aiming for ...Bxg5!} 55. Kxh4 h6 56. gxh6+ Bxh6) 55. f6+ $11 {[%emt 0:00:24] The position is equal.} Kf7 {[%emt 0:00:04]} 56. gxh6 {[%emt 0:00:06] White threatens h7 and mate.} Kxf6 {[%emt 0:00:06]} 57. h7 {[%emt 0:00:11]} Kg7 {[%emt 0:00:04]} 58. Bb1 {[%emt 0:00:05]} Be1 {[%emt 0:00:15]} 59. Bc2 {[%emt 0:00:05]} Kh8 {[%emt 0:00:16] Weighted Error Value: White=0.19 (very precise) /Black=0.18 (very precise)} 1/2-1/2

[Event "Kvika Banki League Iceland 2022-23"]
[Site "Reykjavik"]
[Date "2022.10.14"]
[Round "2.19"]
[White "Gretarsson, Hjorvar Steinn"]
[Black "Ragnarsson, Dagur"]
[Result "1-0"]
[ECO "B44"]
[WhiteElo "2533"]
[BlackElo "2348"]
[Annotator "TA"]
[PlyCount "93"]
[EventDate "2022.10.13"]
[EventType "team-tourn"]
[EventCountry "ISL"]
[SourceTitle "playchess.com"]
[Source "ChessBase"]
[SourceQuality "1"]
[TimeControl "5400+30"]

{[%evp 9,93,0,22,28,33,40,31,21,25,17,13,0,0,-20,0,-5,8,22,37,0,33,46,38,46,36,18,14,15,15,13,14,14,9,0,0,0,6,3,35,0,0,0,40,4,6,0,0,0,0,0,0,0,47,30,141,133,145,68,57,64,151,166,157,154,185,168,429,180,187,185,161,182,540,175,175,175,177,175,1020,893,29988,29989,29998,29999,29999,29998]} 1. e4 {[%emt 0:00:49]} c5 {[%emt 0:00:32]} 2. Nf3 {[%emt 0:00:22]} e6 {[%emt 0:00:07]} 3. d4 {[%emt 0:02:30]} cxd4 {[%emt 0:00:08]} 4. Nxd4 {[%emt 0:00:22]} Nc6 {[%emt 0:00:09]} 5. Qd3 {[%emt 0:02:33]} Nxd4 {[%emt 0:03:59]} 6. Qxd4 {[%emt 0:00:36] [#] B44: Sicilian: Taimanov: 5 Nb5.} a6 $146 {[%emt 0:05:45]} ({Predecessor:} 6... Nf6 7. Bg5 Be7 8. Bd3 h6 9. Bh4 a6 10. Nd2 b6 11. e5 Nd5 12. Bxe7 Nxe7 {1-0 (33) Dorner,H (1777)-Wissmeier,B (1681) Buechenbach 2001}) 7. c4 {[%emt 0:04:36]} Ne7 {[%emt 0:05:36][%cal Bg8e7,Be7c6,Bc6d4][%mdl 32]} 8. Nc3 {[%emt 0:05:06] White is slightly better.} Nc6 {[%emt 0:00:33]} 9. Qd2 {[%emt 0:00:42]} Bc5 {[%emt 0:04:57]} 10. b3 {[%emt 0:03:32]} O-O {[%emt 0:02:14][%cal Od7d5]} 11. Bb2 {[%emt 0:04:03]} Re8 {[%emt 0:19:56][%cal Od7d5]} 12. Be2 {[%emt 0:03:49]} Nd4 {[%emt 0:08:31][%cal Od7d5]} (12... d6 {looks sharper.} 13. O-O Qh4 14. Na4 Rd8) 13. O-O {[%emt 0:07:46]} b6 {[%emt 0:08:38]} 14. Na4 {[%emt 0:30:27]} (14. Bh5 {keeps more tension.} a5 15. Nd5 e5 16. Kh1) 14... Nxe2+ {[%emt 0:08:40]} 15. Qxe2 {[%emt 0:00:05]} Bf8 {[%emt 0:01:09][%cal Ob6b5]} 16. Rfd1 {[%emt 0:04:12]} d6 {[%emt 0:12:11][%cal Ob6b5]} 17. Bd4 {[%emt 0:16:13]} Rb8 {[%emt 0:00:37]} 18. Nc3 {[%emt 0:00:52][%cal Ba4c3,Bc3e4,Be4d6][%mdl 32]} b5 {[%emt 0:01:58]} 19. c5 {[%emt 0:02:50]} Qc7 {[%emt 0:04:24]} 20. cxd6 {[%emt 0:00:25]} Bxd6 {[%emt 0:00:06]} 21. e5 {[%emt 0:00:55]} Ba3 {[%emt 0:01:26]} 22. Ne4 {[%emt 0:01:20]} Bb7 {[%emt 0:00:09]} 23. Nd6 $1 {[%emt 0:01:14]} Red8 {[%emt 0:02:50]} (23... Bxd6 24. exd6 Qd7 25. Qg4 $16) 24. Bb2 {[%emt 0:01:02]} Bxb2 {[%emt 0:03:33]} (24... Bxd6 25. exd6 Qd7 26. Rac1 $16) 25. Qxb2 {[%emt 0:00:18]} Qc6 {[%emt 0:00:32][%csl Gb7][%cal Rc6g2]} 26. f3 {[%emt 0:02:38] Active counter play!} Qb6+ {[%emt 0:01:22]} 27. Qf2 {[%emt 0:01:14]} Qxf2+ {[%emt 0:00:00]} 28. Kxf2 {[%emt 0:00:03]} Bd5 {[%emt 0:00:00]} 29. Rac1 {[%emt 0:01:29]} f6 {[%emt 0:00:00]} 30. f4 {[%emt 0:00:52]} g5 {[%emt 0:02:59]} (30... a5 $11) 31. Kg3 {[%emt 0:00:36]} Rd7 {[%emt 0:00:16] [#]} (31... Rf8 $11) 32. Ne4 $1 $16 {[%emt 0:00:43][%mdl 512]} gxf4+ {[%emt 0:00:26]} 33. Kxf4 {[%emt 0:00:05]} (33. Kh3 $16 Rg7 34. Nxf6+ Kh8 35. Rd2 (35. Nxd5 exd5 36. Rc6 Rbg8 $16)) 33... fxe5+ $14 {[%emt 0:00:37]} 34. Kxe5 {[%emt 0:00:08] Strongly threatening Nf6+.} Rg7 {[%emt 0:01:09]} ({Black should try} 34... Rf7 $14) 35. Nf6+ $16 {[%emt 0:00:24]} Kh8 {[%emt 0:00:06]} 36. g4 $1 {[%emt 0:00:33]} (36. Nxd5 $6 exd5 37. Rg1 (37. Rxd5 Rxg2 38. a4 bxa4 $15) 37... Re8+ 38. Kxd5 Rd8+ 39. Ke6 Re8+ 40. Kd5 Rd8+ 41. Kc5 Rd2 $14) 36... Rg5+ {[%emt 0:00:20]} 37. Kf4 {[%emt 0:00:19]} h6 {[%emt 0:01:37]} (37... Rg7 38. Nxd5 Rf8+ 39. Kg3 exd5 40. Rxd5 Rgf7) 38. h4 {[%emt 0:01:38]} (38. Rc7 $142 {[%csl Gf6][%cal Rc7h7]} Rg7 39. Nxd5 exd5 40. Rxg7 Kxg7 41. Rxd5) 38... Rg7 $18 {[%emt 0:00:55]} 39. Ke5 {[%emt 0:00:49]} a5 {[%emt 0:00:28]} 40. Rd2 {[%emt 0:01:12] Hoping for Rdc2.} (40. Nxd5 $6 exd5 41. Rg1 (41. Kxd5 Rxg4 42. Kc6 Rxh4 $11) 41... Rd8 $14) 40... a4 $2 {[%emt 0:00:06]} (40... Rf8 {is tougher.} 41. Rc5 (41. Nxd5 exd5 42. Rg1 Re8+ 43. Kd6 Rd8+ 44. Kc5 a4 $14) 41... Rb7) 41. bxa4 $2 {[%emt 0:00:12]} (41. Rdc2 {White wants to mate with Rc8+.} Rgb7 42. Rc8+ (42. Nxd5 exd5 43. Rc6 axb3 $16) 42... Rxc8 43. Rxc8+ Kg7 44. g5 (44. Nxd5 exd5 45. Kxd5 Rd7+ 46. Kc5 axb3 $16) 44... hxg5 45. Rg8+ (45. Nxd5 exd5 46. hxg5 Re7+ 47. Kf5 Rf7+ 48. Kg4 a3 $11) 45... Kf7 46. hxg5) 41... bxa4 {[%emt 0:00:05]} 42. Rdc2 {[%emt 0:00:06] Intending Rc8+ and mate.} ({And not} 42. Nxd5 exd5 43. Rg2 (43. Rxd5 Rxg4 44. Rc7 Kg8 $11) 43... Rb4 $11) 42... Rgb7 {[%emt 0:00:58]} 43. a3 $1 {[%emt 0:00:56]} ({But not} 43. Nxd5 $6 exd5 44. Kxd5 Rb2 $16) 43... Kg7 $2 {[%emt 0:01:09] [#]} (43... Rb5 44. Rc7 Ba2+ 45. Kf4 R5b7) 44. Rc7+ $1 {[%emt 0:00:07]} Rxc7 {[%emt 0:00:07]} 45. Rxc7+ {[%emt 0:00:06] White mates.} Kg6 {[%emt 0:00:24] [#]} 46. Nh5 $1 {[%emt 0:00:04][%cal Rh5f4]} Be4 47. Kxe4 {Weighted Error Value: White=0.25 (precise) /Black=0.38} 1-0